bitfinex/quotes_BTCUSD_20250610
["timestamp","ask_amount","ask_price","bid_price","bid_amount"]
[1749598529173,0.002,109870.0,109860.0,0.0318]
[1749598529811,0.002,109870.0,109860.0,0.57391092]
[1749598530228,0.002,109870.0,109860.0,0.1231534]
[1749598532569,0.002,109870.0,109860.0,0.5231534]
[1749598533056,0.002,109870.0,109860.0,0.52156422]
[1749598538955,0.002,109870.0,109860.0,0.99732174]
[1749598540336,0.002,109870.0,109860.0,1.08769915]
[1749598540798,0.002,109870.0,109860.0,0.63694163]
[1749598553507,0.45275752,109870.0,109860.0,0.70241081]
[1749598553715,0.002,109870.0,109860.0,0.70241081]
[1749598554117,0.002,109870.0,109860.0,0.71861081]
[1749598554531,0.002,109870.0,109860.0,0.73471081]
[1749598556456,0.002,109870.0,109860.0,0.33471081]
[1749598556795,0.002,109870.0,109860.0,0.73471081]
[1749598557242,0.002,109870.0,109860.0,0.6443334]
[1749598562224,0.002,109870.0,109860.0,1.09509092]
[1749598563190,0.002,109870.0,109860.0,0.6443334]
[1749598565873,0.002,109870.0,109860.0,1.09509092]
[1749598566235,0.002,109870.0,109860.0,0.6443334]
[1749598566432,0.002,109870.0,109860.0,1.29509092]
[1749598569916,0.002,109870.0,109860.0,0.8443334]
[1749598570129,0.002,109870.0,109860.0,1.29509092]
[1749598570933,0.002,109870.0,109860.0,0.8443334]
[1749598571211,0.002,109870.0,109860.0,1.29509092]
[1749598572447,0.002,109870.0,109860.0,1.59129092]
[1749598572670,0.002,109870.0,109860.0,2.04204844]
[1749598573106,0.002,109870.0,109860.0,1.79129092]
[1749598573312,0.002,109870.0,109860.0,2.24138134]
[1749598573770,0.002,109870.0,109860.0,2.24438134]
[1749598574555,0.002,109870.0,109860.0,2.24838134]
[1749598575339,0.002,109870.0,109860.0,1.70231321]
[1749598575551,0.002,109870.0,109860.0,1.3474934]
[1749598575758,0.002,109870.0,109860.0,1.79795321]
[1749598579692,0.002,109870.0,109860.0,1.2518534]
[1749598579938,0.002,109870.0,109860.0,1.70231321]
[1749598580179,0.002,109870.0,109860.0,0.8268534]
[1749598580384,0.48445981,109870.0,109860.0,0.8861934]
[1749598580591,0.48445981,109870.0,109860.0,0.7905534]
[1749598580800,0.50191179,109870.0,109860.0,0.003]
[1749598581010,0.50191179,109870.0,109860.0,0.005]
[1749598581432,0.48425981,109870.0,109860.0,0.003]
[1749598581857,0.45245981,109870.0,109850.0,0.49564]
[1749598582054,0.0157,109860.0,109850.0,0.49564]
[1749598583176,0.49420063,109870.0,109850.0,0.49564]
[1749598584335,0.49420063,109870.0,109850.0,0.49664]
[1749598584537,0.49420063,109870.0,109850.0,0.09664]
[1749598584991,0.04374082,109870.0,109850.0,0.49564]
[1749598585192,0.49420063,109870.0,109850.0,0.49564]
[1749598586347,0.49420063,109870.0,109850.0,0.49664]
[1749598587152,0.48425981,109870.0,109850.0,0.49664]
[1749598588183,0.48425981,109870.0,109850.0,0.09664]
[1749598588734,0.48425981,109870.0,109850.0,0.49664]
[1749598589743,0.002,109870.0,109850.0,0.52764]
[1749598589980,0.002,109870.0,109860.0,0.0157]
[1749598590187,0.002,109870.0,109850.0,0.6189934]
[1749598590403,0.0176,109870.0,109850.0,0.6189934]
[1749598590608,0.0332,109870.0,109850.0,0.6189934]
[1749598590789,0.0176,109870.0,109850.0,0.6189934]
[1749598590989,0.46805981,109870.0,109850.0,0.6179934]
[1749598591435,0.48335981,109870.0,109850.0,0.6179934]
[1749598592535,0.48335981,109870.0,109860.0,0.09612]
[1749598593481,0.48335981,109870.0,109850.0,0.001]
[1749598593659,0.48335981,109870.0,109860.0,0.09608]
[1749598593848,0.48335981,109870.0,109860.0,0.49608]
[1749598595150,0.48335981,109870.0,109860.0,0.4]
[1749598595355,0.48335981,109870.0,109860.0,0.49604]
[1749598595356,0.0329,109870.0,109860.0,0.49604]
[1749598595777,0.48335981,109870.0,109860.0,0.49604]
[1749598596585,0.48335981,109870.0,109860.0,0.4]
[1749598596786,0.48335981,109870.0,109860.0,0.0964]
[1749598597139,0.48335981,109870.0,109850.0,0.1285]
[1749598597342,0.46805981,109870.0,109850.0,0.5285]
[1749598598814,0.45245981,109870.0,109850.0,0.5285]
[1749598599003,0.45245981,109870.0,109850.0,0.6198534]
[1749598599202,0.002,109870.0,109850.0,1.07031321]
[1749598599440,0.002,109870.0,109850.0,0.6198534]
[1749598599640,0.002,109870.0,109850.0,1.07031321]
[1749598600059,0.002,109870.0,109850.0,1.07131321]
[1749598600310,0.002,109870.0,109850.0,0.6208534]
[1749598600731,0.002,109870.0,109850.0,0.7111398]
[1749598602004,0.45245981,109870.0,109850.0,0.7111398]
[1749598604900,0.48335981,109870.0,109850.0,0.7111398]
[1749598605839,0.48335981,109870.0,109850.0,0.6197864]
[1749598606042,0.45045981,109860.0,109850.0,0.5876864]
[1749598606681,0.45045981,109860.0,109850.0,0.4912864]
[1749598606901,0.45045981,109860.0,109850.0,0.5863664]
[1749598607113,0.45045981,109860.0,109850.0,0.4902864]
[1749598607324,0.45045981,109860.0,109850.0,0.4912864]
[1749598609901,0.45045981,109860.0,109850.0,0.0912864]
[1749598610327,0.45045981,109860.0,109850.0,0.4912864]
[1749598613976,0.46615981,109860.0,109850.0,0.5871664]
[1749598615158,0.46615981,109860.0,109850.0,0.1861664]
[1749598615412,0.45045981,109860.0,109850.0,0.1861664]
[1749598615613,0.45045981,109860.0,109850.0,0.5861664]
[1749598616232,0.48045981,109860.0,109850.0,0.4902864]
[1749598616588,0.48045981,109860.0,109850.0,0.0902864]
[1749598616792,0.03,109850.0,109840.0,0.31248736]
[1749598617017,0.45045981,109850.0,109840.0,0.1860864]
[1749598617371,0.45045981,109850.0,109830.0,0.63291143]
[1749598617600,0.002,109870.0,109840.0,0.0324]
[1749598617807,0.002,109870.0,109860.0,0.0324]
[1749598618737,0.002,109870.0,109860.0,0.1226864]
[1749598618931,0.002,109870.0,109860.0,0.0324]
[1749598619752,0.002,109870.0,109860.0,0.1226864]
[1749598620612,0.002,109870.0,109860.0,0.57289759]
[1749598620816,0.002,109870.0,109860.0,0.12243778]
[1749598621052,0.002,109870.0,109860.0,0.52243778]
[1749598624091,0.002,109870.0,109860.0,0.12243778]
[1749598624638,0.002,109870.0,109860.0,0.52243778]
[1749598627387,0.45245981,109870.0,109860.0,0.52243778]
[1749598627607,0.002,109870.0,109860.0,0.12243778]
[1749598627830,0.45245981,109870.0,109860.0,0.12243778]
[1749598628078,0.45245981,109870.0,109860.0,0.52243778]
[1749598629787,0.002,109870.0,109860.0,0.52243778]
[1749598631100,0.002,109870.0,109860.0,0.12243778]
[1749598631524,0.002,109870.0,109860.0,0.52243778]
[1749598633289,0.46805981,109870.0,109860.0,0.5862064]
[1749598633521,0.46805981,109870.0,109860.0,0.49592]
[1749598634663,0.46805981,109870.0,109860.0,0.09592]
[1749598634917,0.46805981,109870.0,109850.0,0.2178264]
[1749598635133,0.46805981,109870.0,109860.0,0.4]
[1749598635654,0.53279179,109870.0,109840.0,0.13471105]
[1749598635902,0.45045981,109860.0,109850.0,0.09588]
[1749598636136,0.45045981,109860.0,109850.0,0.001]
[1749598636353,0.002,109870.0,109850.0,0.0332]
[1749598636591,0.002,109870.0,109860.0,0.0322]
[1749598636807,0.002,109870.0,109860.0,0.12808]
[1749598639999,0.002,109870.0,109860.0,0.52808]
[1749598640225,0.002,109870.0,109860.0,1.06882621]
[1749598640432,0.002,109870.0,109860.0,0.6183664]
[1749598640910,0.002,109870.0,109860.0,1.06882621]
[1749598641130,0.002,109870.0,109860.0,0.6183664]
[1749598644341,0.002,109870.0,109860.0,0.2183664]
[1749598644738,0.002,109870.0,109860.0,0.6183664]
[1749598647759,0.002,109870.0,109860.0,0.2183664]
[1749598648418,0.002,109870.0,109860.0,0.6183664]
[1749598651382,0.002,109870.0,109860.0,0.2183664]
[1749598651825,0.002,109870.0,109860.0,0.6183664]
[1749598654815,0.002,109870.0,109860.0,0.2183664]
[1749598655021,0.002,109870.0,109860.0,0.5097198]
[1749598655232,0.002,109870.0,109860.0,1.36017961]
[1749598656997,0.002,109870.0,109860.0,1.26989321]
[1749598657394,0.002,109870.0,109860.0,0.8194334]
[1749598657802,0.0003782,109870.0,109860.0,0.8194334]
[1749598658000,0.0003782,109870.0,109860.0,0.94583436]
[1749598658246,0.0003782,109870.0,109860.0,1.14583436]
[1749598658452,0.0003782,109870.0,109860.0,1.59629417]
[1749598658859,0.0003782,109870.0,109860.0,2.04675398]
[1749598659063,0.0003782,109870.0,109860.0,2.68295398]
[1749598659275,0.0003782,109870.0,109860.0,2.23249417]
[1749598659852,0.0003782,109870.0,109860.0,2.10609321]
[1749598660086,7.157e-05,109870.0,109860.0,2.10609321]
[1749598660281,7.157e-05,109870.0,109860.0,2.10709321]
[1749598661287,7.157e-05,109870.0,109860.0,2.23330538]
[1749598663356,7.157e-05,109870.0,109860.0,2.10709321]
[1749598664312,7.157e-05,109870.0,109860.0,2.2332331]
[1749598666409,7.157e-05,109870.0,109860.0,1.6566334]
[1749598666628,7.157e-05,109870.0,109860.0,2.10709321]
[1749598668016,0.00194291,109880.0,109870.0,0.0562]
[1749598668240,0.00194291,109880.0,109870.0,0.81979223]
[1749598668701,0.00194291,109880.0,109870.0,1.19479223]
[1749598674601,0.00194291,109880.0,109870.0,1.49099223]
[1749598676023,0.00194291,109880.0,109870.0,1.14489242]
[1749598676241,0.00194291,109880.0,109870.0,0.91369242]
[1749598676450,0.00194291,109880.0,109870.0,1.00933242]
[1749598676657,0.00194291,109880.0,109870.0,0.8831934]
[1749598677483,0.00194291,109880.0,109870.0,0.9148934]
[1749598678103,0.00037363,109880.0,109870.0,0.9148934]
[1749598678531,0.00037363,109880.0,109870.0,1.04103242]
[1749598679754,0.00037363,109880.0,109870.0,1.49149223]
[1749598680601,0.00037363,109880.0,109870.0,1.19529223]
[1749598683966,0.00037363,109880.0,109870.0,1.49149223]
[1749598685717,0.00037363,109880.0,109870.0,1.04103242]
[1749598685914,0.00037363,109880.0,109870.0,1.49149223]
[1749598686121,0.00037363,109880.0,109870.0,1.04103242]
[1749598686359,0.00037363,109880.0,109870.0,1.49149223]
[1749598687019,0.00037363,109880.0,109870.0,1.04103242]
[1749598687232,0.00037363,109880.0,109870.0,1.83149223]
[1749598687460,7.183e-05,109880.0,109870.0,1.70535321]
[1749598688082,0.00052879,109890.0,109880.0,0.90635981]
[1749598688309,0.00052879,109890.0,109880.0,1.2196131]
[1749598688755,0.00052879,109890.0,109880.0,1.6196131]
[1749598690013,0.00052879,109890.0,109880.0,1.62926435]
[1749598690501,0.00052879,109890.0,109880.0,1.17876454]
[1749598690741,0.00052879,109890.0,109880.0,1.16911329]
[1749598690989,0.00052879,109890.0,109880.0,1.13821329]
[1749598691967,0.00052879,109890.0,109880.0,1.15351329]
[1749598692440,0.00052879,109890.0,109880.0,1.1632886]
[1749598693172,0.00052879,109890.0,109880.0,1.61374841]
[1749598693448,0.00052879,109890.0,109880.0,1.63014841]
[1749598693689,0.00052879,109890.0,109880.0,1.1796886]
[1749598694168,0.00052879,109890.0,109880.0,1.63014841]
[1749598695681,0.00052879,109890.0,109880.0,1.1632886]
[1749598695889,0.00052879,109890.0,109880.0,1.1479886]
[1749598697965,9.109e-05,109890.0,109880.0,1.1479886]
[1749598698386,9.109e-05,109890.0,109880.0,0.84261329]
[1749598698602,9.109e-05,109890.0,109880.0,0.93821329]
[1749598699537,9.109e-05,109890.0,109880.0,1.4199731]
[1749598700151,9.109e-05,109890.0,109880.0,1.42973539]
[1749598700805,9.109e-05,109890.0,109880.0,0.97927558]
[1749598705953,9.109e-05,109890.0,109880.0,0.77927558]
[1749598707853,9.109e-05,109890.0,109880.0,0.76327558]
[1749598708064,1.689e-05,109890.0,109880.0,0.76327558]
[1749598710688,1.689e-05,109890.0,109880.0,1.42913539]
[1749598713717,1.689e-05,109890.0,109880.0,1.62913539]
[1749598717183,1.689e-05,109890.0,109880.0,1.5028755]
[1749598717629,0.0166871,109900.0,109880.0,2.21883531]
[1749598717854,0.0166871,109900.0,109890.0,1.11943302]
[1749598718061,0.00140835,109900.0,109890.0,0.66897321]
[1749598718286,0.00140835,109900.0,109890.0,0.79524806]
[1749598718489,0.00140835,109900.0,109890.0,1.55014787]
[1749598718697,0.00140835,109900.0,109890.0,1.19524806]
[1749598718911,0.00140835,109900.0,109890.0,1.06897321]
[1749598719128,0.00140835,109900.0,109890.0,0.74478706]
[1749598719333,0.00140835,109900.0,109890.0,1.19524687]
[1749598719545,0.00140835,109900.0,109890.0,1.19724687]
[1749598720171,0.00140835,109900.0,109890.0,1.07097321]
[1749598720613,0.00140835,109900.0,109890.0,0.6235134]
[1749598720817,0.00140835,109900.0,109890.0,1.07397321]
[1749598721234,0.00140835,109900.0,109890.0,1.20016918]
[1749598721862,0.00140835,109900.0,109890.0,1.10460918]
[1749598722046,0.00140835,109900.0,109890.0,1.04590937]
[1749598722297,0.00140835,109900.0,109890.0,1.49636918]
[1749598728083,0.00019277,109900.0,109890.0,1.49636918]
[1749598729162,0.00019277,109900.0,109890.0,2.28682899]
[1749598729373,2.657e-05,109900.0,109890.0,1.28179462]
[1749598729626,2.657e-05,109900.0,109890.0,2.16063302]
[1749598732488,2.657e-05,109900.0,109890.0,1.2597134]
[1749598732703,2.657e-05,109900.0,109890.0,2.16063302]
[1749598732914,2.657e-05,109900.0,109890.0,1.2633504]
[1749598733128,2.657e-05,109900.0,109890.0,1.91013321]
[1749598733987,2.657e-05,109900.0,109890.0,2.36059302]
[1749598734210,2.657e-05,109900.0,109890.0,1.4596734]
[1749598734424,2.657e-05,109900.0,109890.0,2.36059302]
[1749598737405,0.002,109910.0,109900.0,0.2161]
[1749598737613,0.002,109910.0,109900.0,0.88407122]
[1749598737806,0.002,109910.0,109900.0,0.97959122]
[1749598738008,0.00027626,109910.0,109900.0,1.39459122]
[1749598738307,0.00027626,109910.0,109900.0,0.81751141]
[1749598738519,0.03117626,109910.0,109900.0,0.81751141]
[1749598738746,0.03117626,109910.0,109900.0,0.71403141]
[1749598738956,0.03117626,109910.0,109900.0,0.80419772]
[1749598739087,0.03117626,109910.0,109900.0,0.67803971]
[1749598743070,0.03117626,109910.0,109900.0,0.49116631]
[1749598743286,0.48163607,109910.0,109900.0,0.58668631]
[1749598743718,0.48163607,109910.0,109900.0,0.49116631]
[1749598744147,0.03117626,109910.0,109900.0,0.49116631]
[1749598745219,0.48163607,109910.0,109900.0,0.49116631]
[1749598745433,0.03117626,109910.0,109900.0,0.49116631]
[1749598745651,0.48163607,109910.0,109900.0,0.49116631]
[1749598746300,0.48163607,109910.0,109900.0,0.09116631]
[1749598746301,0.03117626,109910.0,109900.0,0.09116631]
[1749598746743,0.48163607,109910.0,109900.0,0.49016631]
[1749598746976,0.52979968,109910.0,109900.0,0.49016631]
[1749598747640,0.52979968,109910.0,109900.0,0.09016631]
[1749598747865,0.0317,109900.0,109890.0,0.09016631]
[1749598748079,0.48215981,109900.0,109890.0,0.09016631]
[1749598748316,0.48215981,109900.0,109890.0,0.49016631]
[1749598748748,0.0317,109900.0,109890.0,0.49016631]
[1749598750028,0.0317,109900.0,109890.0,0.49116631]
[1749598751361,0.0317,109900.0,109890.0,0.09116631]
[1749598751781,0.0317,109900.0,109890.0,0.49116631]
[1749598754869,0.0317,109900.0,109890.0,0.09116631]
[1749598755312,0.48215981,109900.0,109890.0,0.49116631]
[1749598755744,0.0317,109900.0,109890.0,0.49116631]
[1749598758128,0.0317,109900.0,109890.0,0.09116631]
[1749598758538,0.03177626,109910.0,109890.0,0.21501971]
[1749598758741,0.00027626,109910.0,109900.0,0.65064182]
[1749598758947,0.00027626,109910.0,109900.0,0.57847981]
[1749598759151,0.00027626,109910.0,109900.0,0.12802]
[1749598759538,0.00027626,109910.0,109900.0,0.20188631]
[1749598761054,0.00027626,109910.0,109900.0,0.18568631]
[1749598762357,0.45073607,109910.0,109900.0,0.58568631]
[1749598762592,0.46653607,109910.0,109900.0,0.58568631]
[1749598762824,0.48213607,109910.0,109900.0,0.58568631]
[1749598763232,0.03167626,109910.0,109900.0,0.58568631]
[1749598763641,0.48213607,109910.0,109900.0,0.58568631]
[1749598764900,0.53034968,109910.0,109900.0,0.58568631]
[1749598765130,0.53034968,109910.0,109900.0,0.49016631]
[1749598765540,0.53034968,109910.0,109900.0,0.09016631]
[1749598765952,0.53034968,109910.0,109900.0,0.49016631]
[1749598766168,0.53034968,109910.0,109900.0,0.4]
[1749598767010,0.53034968,109910.0,109900.0,0.49016631]
[1749598767926,0.07988987,109910.0,109900.0,0.49016631]
[1749598768131,0.48213607,109910.0,109900.0,0.49016631]
[1749598768772,0.46653607,109910.0,109900.0,0.49016631]
[1749598769012,0.00027626,109910.0,109900.0,0.09016631]
[1749598769230,0.00027626,109910.0,109900.0,0.12146631]
[1749598769442,0.00027626,109910.0,109900.0,1.1360101]
[1749598769653,0.00027626,109910.0,109900.0,0.68555029]
[1749598773102,0.00027626,109910.0,109900.0,0.28555029]
[1749598773308,4.342e-05,109910.0,109900.0,0.1226534]
[1749598773510,4.342e-05,109910.0,109900.0,0.24881141]
[1749598773735,4.342e-05,109910.0,109900.0,0.64881141]
[1749598775210,4.342e-05,109910.0,109900.0,0.87381141]
[1749598775638,4.342e-05,109910.0,109900.0,1.32427122]
[1749598776898,4.342e-05,109910.0,109900.0,0.87381141]
[1749598780922,4.342e-05,109910.0,109900.0,1.32427122]
[1749598783374,3.42e-06,109910.0,109900.0,1.32427122]
[1749598784702,3.42e-06,109910.0,109900.0,1.41975122]
[1749598785186,3.42e-06,109910.0,109900.0,1.01975122]
[1749598785647,3.42e-06,109910.0,109900.0,1.41975122]
[1749598785880,3.42e-06,109910.0,109900.0,1.71595122]
[1749598786114,3.42e-06,109910.0,109900.0,1.7886818]
[1749598786355,3.42e-06,109910.0,109900.0,2.00252379]
[1749598786572,0.002,109930.0,109920.0,0.68195981]
[1749598786801,0.002,109930.0,109920.0,0.95900675]
[1749598787274,0.002,109930.0,109920.0,0.50854694]
[1749598788204,0.002,109930.0,109920.0,0.95900675]
[1749598788417,0.002,109930.0,109920.0,0.96000675]
[1749598789509,0.002,109930.0,109920.0,0.86979321]
[1749598789722,0.002,109930.0,109920.0,0.95994714]
[1749598790358,0.00191452,109930.0,109920.0,0.95994714]
[1749598790569,0.00191452,109930.0,109920.0,0.98494714]
[1749598790801,0.00191452,109930.0,109920.0,0.89479321]
[1749598791019,0.00191452,109930.0,109920.0,1.02109217]
[1749598792293,0.00191452,109930.0,109920.0,0.89479321]
[1749598792970,0.00191452,109930.0,109920.0,1.02093833]
[1749598793466,0.00027531,109930.0,109920.0,0.57995329]
[1749598793690,0.00027531,109930.0,109920.0,1.0304131]
[1749598794376,0.00027531,109930.0,109920.0,0.57995329]
[1749598794590,0.00027531,109930.0,109920.0,1.0304131]
[1749598795954,0.00027531,109930.0,109920.0,1.3266131]
[1749598796394,0.00027531,109930.0,109920.0,0.78067329]
[1749598796648,0.00027531,109930.0,109920.0,1.3265731]
[1749598797313,0.00027531,109930.0,109920.0,0.87611329]
[1749598797538,0.00027531,109930.0,109920.0,1.3265731]
[1749598797761,0.00027531,109930.0,109920.0,1.7265731]
[1749598799285,0.00027531,109930.0,109920.0,2.17703291]
[1749598799757,0.00027531,109930.0,109920.0,2.11703291]
[1749598799975,4.003e-05,109930.0,109920.0,7.30542864]
[1749598800193,4.003e-05,109930.0,109920.0,7.20998864]
[1749598800430,4.003e-05,109930.0,109920.0,3.72566864]
[1749598800642,4.003e-05,109930.0,109920.0,3.90487595]
[1749598801078,4.003e-05,109930.0,109920.0,3.79143195]
[1749598801290,4.003e-05,109930.0,109920.0,3.91251195]
[1749598801535,4.003e-05,109930.0,109920.0,3.91551195]
[1749598802193,4.003e-05,109930.0,109920.0,3.75403195]
[1749598802432,4.003e-05,109930.0,109920.0,3.87511195]
[1749598802657,4.003e-05,109930.0,109920.0,4.0661598]
[1749598802870,4.003e-05,109930.0,109920.0,4.07525707]
[1749598803093,4.003e-05,109930.0,109920.0,4.08435426]
[1749598803311,0.002,109950.0,109940.0,0.4]
[1749598803312,0.00029691,109950.0,109940.0,0.4]
[1749598803527,0.00029691,109950.0,109940.0,1.09355321]
[1749598803979,0.00029691,109950.0,109940.0,1.66991773]
[1749598804202,0.00029691,109950.0,109940.0,1.21945792]
[1749598804424,0.00029691,109950.0,109940.0,1.22045792]
[1749598805300,0.00029691,109950.0,109940.0,1.24809792]
[1749598805753,0.00029691,109950.0,109940.0,1.24709792]
[1749598806014,0.00029691,109950.0,109940.0,1.25009792]
[1749598806231,0.00029691,109950.0,109940.0,1.27687332]
[1749598807920,0.00029691,109950.0,109940.0,1.91303332]
[1749598809453,0.00029691,109950.0,109940.0,2.36349313]
[1749598809667,0.00029691,109950.0,109940.0,1.91303332]
[1749598809874,0.00029691,109950.0,109940.0,1.46257351]
[1749598810105,0.00029691,109950.0,109940.0,1.91303332]
[1749598811266,0.00029691,109950.0,109940.0,1.79199332]
[1749598811476,0.00029691,109950.0,109940.0,1.91299332]
[1749598813210,0.00029691,109950.0,109940.0,1.79199332]
[1749598813420,4.463e-05,109950.0,109940.0,1.78708861]
[1749598813636,4.463e-05,109950.0,109940.0,1.3366288]
[1749598813855,4.463e-05,109950.0,109940.0,6.83708861]
[1749598814734,4.463e-05,109950.0,109940.0,6.83508861]
[1749598814960,4.63e-06,109950.0,109940.0,6.83908861]
[1749598815189,4.63e-06,109950.0,109940.0,7.30408927]
[1749598815410,4.63e-06,109950.0,109940.0,7.30108927]
[1749598815673,4.63e-06,109950.0,109940.0,7.31608927]
[1749598816110,4.63e-06,109950.0,109940.0,7.61606179]
[1749598816366,4.63e-06,109950.0,109940.0,6.83614217]
[1749598816801,4.63e-06,109950.0,109940.0,7.73706179]
[1749598817022,4.63e-06,109950.0,109940.0,7.59508927]
[1749598817257,4.63e-06,109950.0,109940.0,6.71552946]
[1749598817905,4.63e-06,109950.0,109940.0,7.16598927]
[1749598818854,4.63e-06,109950.0,109940.0,6.59452946]
[1749598819070,4.63e-06,109950.0,109940.0,7.16598927]
[1749598821253,4.63e-06,109950.0,109940.0,7.52997898]
[1749598821486,4.63e-06,109950.0,109940.0,7.42519369]
[1749598821936,4.63e-06,109950.0,109940.0,7.62359166]
[1749598822424,4.63e-06,109950.0,109940.0,7.64456418]
[1749598822920,0.002,109970.0,109960.0,0.8204]
[1749598823153,0.002,109970.0,109960.0,1.87970614]
[1749598823690,0.00030451,109970.0,109960.0,1.87970614]
[1749598823918,0.00030451,109970.0,109960.0,2.27970614]
[1749598824657,0.00030451,109970.0,109960.0,2.30526614]
[1749598824928,0.00030451,109970.0,109960.0,2.18930614]
[1749598825172,0.00030451,109970.0,109960.0,5.53698552]
[1749598825412,0.00030451,109970.0,109960.0,5.54607965]
[1749598825662,0.00030451,109970.0,109960.0,5.93883438]
[1749598825886,0.00030451,109970.0,109960.0,5.96553635]
[1749598826150,0.00030451,109970.0,109960.0,6.20574366]
[1749598826467,0.00030451,109970.0,109960.0,6.21074366]
[1749598826742,1.906e-05,109970.0,109960.0,6.20874366]
[1749598827274,0.01,109980.0,109970.0,0.8185421]
[1749598827542,0.01,109980.0,109970.0,6.96526834]
[1749598827769,0.01,109980.0,109970.0,6.97436148]
[1749598828193,0.01,109980.0,109970.0,7.37436148]
[1749598828446,0.01,109980.0,109970.0,7.19990734]
[1749598829213,0.01,109980.0,109970.0,7.19081396]
[1749598829452,0.01,109980.0,109970.0,7.19990726]
[1749598829697,0.01,109980.0,109970.0,7.39086826]
[1749598829959,0.01,109980.0,109970.0,8.25324726]
[1749598830210,0.002,109990.0,109980.0,6.45585294]
[1749598830447,0.002,109990.0,109980.0,7.22350997]
[1749598830931,0.00028523,109990.0,109980.0,7.77710615]
[1749598831199,0.00028523,109990.0,109980.0,7.79529036]
[1749598831473,0.00028523,109990.0,109980.0,7.66947308]
[1749598831723,0.00028523,109990.0,109980.0,7.71947308]
[1749598832219,0.00028523,109990.0,109980.0,7.69008142]
[1749598832483,0.00028523,109990.0,109980.0,7.74008142]
[1749598833406,0.00018389,110000.0,109990.0,0.30909173]
[1749598833613,0.00018389,110000.0,109990.0,6.93547016]
[1749598833857,0.00018389,110000.0,109990.0,6.95365354]
[1749598834098,0.00018389,110000.0,109990.0,6.94456189]
[1749598834296,0.00018389,110000.0,109990.0,7.34456189]
[1749598834514,0.00018389,110000.0,109990.0,7.33547016]
[1749598835242,0.00018389,110000.0,109990.0,7.24011016]
[1749598835456,0.00018389,110000.0,109990.0,7.37066914]
[1749598835886,0.00018389,110000.0,109990.0,6.42430914]
[1749598836104,0.00018389,110000.0,109990.0,6.09480933]
[1749598836346,0.00018389,110000.0,109990.0,6.48516914]
[1749598838771,0.00018389,110000.0,109990.0,6.36420914]
[1749598839015,0.00018389,110000.0,109990.0,6.49422087]
[1749598839235,0.00018389,110000.0,109990.0,6.48512914]
[1749598841177,0.00018389,110000.0,109990.0,6.35941313]
[1749598841884,0.00018389,110000.0,109990.0,6.36414147]
[1749598842124,0.00018389,110000.0,109990.0,6.48502147]
[1749598842354,0.00018389,110000.0,109990.0,6.4941132]
[1749598842582,0.00018389,110000.0,109990.0,6.48502147]
[1749598842829,0.00018389,110000.0,109990.0,5.91368166]
[1749598843085,0.00018389,110000.0,109990.0,3.77666166]
[1749598843331,0.00018389,110000.0,109990.0,4.22712147]
[1749598843564,2.752e-05,110000.0,109990.0,4.22712147]
[1749598844042,0.03132752,110000.0,109990.0,1.66788166]
[1749598844325,0.03132752,110000.0,109990.0,0.71638297]
[1749598844564,0.03132752,110000.0,109990.0,0.88605463]
[1749598844805,0.03132752,110000.0,109990.0,0.79073463]
[1749598845044,0.03132752,110000.0,109990.0,0.78113565]
[1749598845302,0.48178733,110000.0,109990.0,0.0913534]
[1749598845541,0.48178733,110000.0,109990.0,0.1866734]
[1749598845776,0.48178733,110000.0,109990.0,0.25854765]
[1749598846005,0.48178733,110000.0,109990.0,0.1866734]
[1749598846237,0.48178733,110000.0,109990.0,0.25854647]
[1749598846509,0.03132752,110000.0,109990.0,0.65854647]
[1749598846748,0.48178733,110000.0,109990.0,0.67645565]
[1749598846985,0.48178733,110000.0,109990.0,0.5866734]
[1749598847219,0.03132752,110000.0,109990.0,0.5866734]
[1749598847472,0.03132752,110000.0,109990.0,0.67645565]
[1749598847719,0.48178733,110000.0,109990.0,0.67645565]
[1749598848180,0.03132752,110000.0,109990.0,0.67645565]
[1749598848412,0.48178733,110000.0,109990.0,0.67645565]
[1749598848660,0.48178733,110000.0,109990.0,0.48978225]
[1749598848903,0.48178733,110000.0,109990.0,0.56724384]
[1749598849147,0.48178733,110000.0,109990.0,0.47192384]
[1749598850417,0.03132752,110000.0,109990.0,0.47192384]
[1749598850696,0.48178733,110000.0,109990.0,0.47192384]
[1749598852110,0.03132752,110000.0,109990.0,0.07192384]
[1749598852348,0.49732818,110000.0,109990.0,0.07192384]
[1749598853785,0.48278733,110000.0,109990.0,0.07192384]
[1749598854024,0.03232752,110000.0,109990.0,0.07192384]
[1749598854557,0.03232752,110000.0,109980.0,0.45791283]
[1749598854791,0.03232752,110000.0,109990.0,0.07200218]
[1749598855045,0.01602752,110000.0,109990.0,0.54181321]
[1749598855289,0.00102752,110000.0,109990.0,0.76681321]
[1749598855527,0.00102752,110000.0,109990.0,0.40613565]
[1749598855764,0.00102752,110000.0,109990.0,0.18113565]
[1749598855765,0.48298733,110000.0,109990.0,0.18113565]
[1749598857428,0.03252752,110000.0,109990.0,0.18113565]
[1749598858320,0.03252752,110000.0,109990.0,0.58113565]
[1749598859187,0.03252752,110000.0,109990.0,0.4913534]
[1749598859416,0.03252752,110000.0,109990.0,0.58113565]
[1749598859658,0.44124,110000.0,109990.0,0.58610225]
[1749598859878,0.44124,110000.0,109990.0,0.48978225]
[1749598860094,0.44124,110000.0,109990.0,0.49632]
[1749598861188,0.03252752,110000.0,109990.0,0.49632]
[1749598861693,0.44124,110000.0,109990.0,0.58610225]
[1749598862614,0.78124,110000.0,109990.0,0.58610225]
[1749598863945,0.37252752,110000.0,109990.0,0.58610225]
[1749598865966,0.37252752,110000.0,109990.0,0.09632]
[1749598866192,0.42739958,110010.0,109990.0,0.09632]
[1749598866414,0.44194043,110010.0,110000.0,0.07198839]
[1749598866633,0.03322795,110010.0,110000.0,0.07198839]
[1749598866846,0.44194043,110010.0,110000.0,0.07198839]
[1749598868360,0.03322795,110010.0,110000.0,0.07198839]
[1749598868564,0.44194043,110010.0,110000.0,0.07198839]
[1749598868989,0.03322795,110010.0,110000.0,0.07198839]
[1749598869242,0.05382795,110010.0,110000.0,0.07198839]
[1749598869453,0.46254043,110010.0,110000.0,0.07198839]
[1749598871083,0.05382795,110010.0,110000.0,0.07198839]
[1749598871292,0.46254043,110010.0,110000.0,0.07198839]
[1749598871924,0.46254043,110010.0,110000.0,0.07207589]
[1749598872364,0.46254043,110010.0,109990.0,0.5861815]
[1749598872630,0.46254043,110010.0,109990.0,0.5871815]
[1749598873070,0.46254043,110010.0,110000.0,0.07209679]
[1749598873297,0.46254043,110010.0,109990.0,0.5871815]
[1749598873544,0.46254043,110010.0,110000.0,0.07212534]
[1749598873803,0.46254043,110010.0,109990.0,0.5871815]
[1749598874011,0.46254043,110010.0,109990.0,0.5074815]
[1749598874012,0.0186871,110010.0,109990.0,0.5074815]
[1749598874232,0.0186871,110010.0,110000.0,0.07212569]